bitfinex/quotes_SOLUSD_20250924
["timestamp","ask_amount","ask_price","bid_price","bid_amount"]
[1758742532152,0.48,213.2,213.19,4.69065153]
[1758742532355,37.12,213.2,213.19,4.69065153]
[1758742532761,36.64,213.2,213.19,4.69065153]
[1758742533150,37.12,213.2,213.19,4.69065153]
[1758742533958,36.64,213.2,213.19,4.69065153]
[1758742535442,37.12,213.2,213.19,4.69065153]
[1758742535643,37.12,213.2,213.17,11.7276798]
[1758742535644,37.12,213.2,213.17,6.86277092]
[1758742536760,37.12,213.2,213.18,2.17189093]
[1758742537962,37.12,213.2,213.19,4.69065153]
[1758742539161,36.64,213.2,213.19,4.69065153]
[1758742539353,36.64,213.2,213.16,4.69131169]
[1758742539354,37.12,213.2,213.16,4.69131169]
[1758742539557,0.48,213.19,213.16,4.69131169]
[1758742539863,2.17189093,213.17,213.11,11.73060215]
[1758742540043,0.48,213.16,213.11,11.73060215]
[1758742540242,0.48,213.15,213.11,13.90249308]
[1758742540439,2.17189093,213.13,213.08,11.73232549]
[1758742540740,37.08,213.12,213.09,4.69285278]
[1758742540959,0.48,213.11,213.09,4.69285278]
[1758742541358,36.6,213.1,213.09,16.42498474]
[1758742541675,36.6,213.1,213.09,17.08498474]
[1758742542041,36.6,213.11,213.09,17.08498474]
[1758742542666,36.6,213.11,213.09,16.42498474]
[1758742542869,36.6,213.11,213.1,0.66]
[1758742543349,36.6,213.11,213.09,18.59687567]
[1758742543549,2.17189093,213.14,213.1,0.66]
[1758742543800,0.48,213.18,213.12,2.17189093]
[1758742543944,36.6,213.17,213.13,2.83189093]
[1758742544147,2.17189093,213.18,213.14,16.42113165]
[1758742544355,2.17189093,213.16,213.14,4.6917519]
[1758742544655,2.65189093,213.16,213.14,4.6917519]
[1758742545077,28.65189093,213.15,213.11,11.73061034]
[1758742545849,28.17189093,213.15,213.12,4.69219219]
[1758742546049,28.65189093,213.14,213.11,11.73061034]
[1758742546281,28.65189093,213.14,213.1,4.69263256]
[1758742546282,36.6,213.13,213.1,4.69263256]
[1758742547605,36.6,213.13,213.1,16.42421397]
[1758742548306,0.14216157,213.2,213.1,16.42421397]
[1758742548610,38.75189093,213.19,213.13,2.17189093]
[1758742548907,64.75189093,213.19,213.13,2.83189093]
[1758742549313,36.58,213.18,213.13,2.83189093]
[1758742549670,39.23189093,213.18,213.14,4.6917519]
[1758742549874,38.75189093,213.18,213.14,4.6917519]
[1758742550084,38.75189093,213.18,213.14,16.42113165]
[1758742550495,2.17189093,213.17,213.14,16.42113165]
[1758742551003,2.17189093,213.16,213.14,17.13113165]
[1758742551297,36.58,213.15,213.14,11.72937975]
[1758742551870,2.17189093,213.16,213.14,11.72937975]
[1758742552080,36.56,213.15,213.14,11.72937975]
[1758742554576,36.56,213.15,213.14,12.43937975]
[1758742554899,36.56,213.15,213.14,17.13113165]
[1758742555284,26.0,213.19,213.14,17.13113165]
[1758742555484,28.17189093,213.19,213.15,0.71]
[1758742555689,36.54,213.18,213.16,0.71]
[1758742556200,36.54,213.17,213.14,17.13113165]
[1758742556394,36.54,213.17,213.15,0.71]
[1758742556896,36.54,213.17,213.16,4.69131169]
[1758742558500,36.54,213.17,213.16,0.71]
[1758742559500,38.71189093,213.17,213.16,0.71]
[1758742559909,1e-08,213.22,213.16,0.71]
[1758742560104,38.67189093,213.21,213.16,0.71]
[1758742560285,2.17189093,213.2,213.16,0.71]
[1758742560485,2.17189093,213.2,213.17,0.69]
[1758742561504,36.5,213.19,213.18,0.69]
[1758742561902,36.5,213.19,213.18,5.38087156]
[1758742563491,2.17189093,213.2,213.18,5.38087156]
[1758742563714,36.48,213.19,213.18,5.38087156]
[1758742564799,2.17189093,213.2,213.18,5.38087156]
[1758742564999,36.48,213.19,213.18,4.69087156]
[1758742565513,36.48,213.19,213.18,5.38087156]
[1758742565710,1e-08,213.22,213.18,17.10805046]
[1758742565910,36.46,213.21,213.19,0.69]
[1758742566102,36.46,213.21,213.2,0.69]
[1758742566609,39.85329301,213.21,213.2,4.69043151]
[1758742567914,39.85329301,213.21,213.2,5.38043151]
[1758742568301,3.39329302,213.22,213.2,5.38043151]
[1758742568690,36.44,213.21,213.2,5.38043151]
[1758742568893,39.83329301,213.21,213.2,5.38043151]
[1758742570111,39.83329301,213.21,213.18,12.4171789]
[1758742570319,36.44,213.21,213.19,0.69]
[1758742570521,39.83329301,213.21,213.19,0.69]
[1758742571310,3.39329301,213.21,213.19,0.69]
[1758742571617,3.39329301,213.21,213.2,4.69043151]
[1758742571809,39.83329301,213.21,213.2,4.69043151]
[1758742572217,39.83329301,213.21,213.2,5.38043151]
[1758742572806,36.44,213.21,213.2,4.69043151]
[1758742573006,39.83329301,213.21,213.2,4.69043151]
[1758742573405,39.83329301,213.21,213.19,4.69065153]
[1758742573606,39.83329301,213.21,213.19,5.38065153]
[1758742574810,3.39329301,213.2,213.19,5.38065153]
[1758742575827,36.44,213.21,213.19,5.38065153]
[1758742576027,3.39329301,213.2,213.19,5.38065153]
[1758742577521,36.44,213.21,213.19,5.38065153]
[1758742577712,1e-08,213.22,213.2,0.69]
[1758742578223,36.42000001,213.22,213.2,0.69]
[1758742578602,1e-08,213.22,213.2,0.69]
[1758742579328,3.39329302,213.22,213.21,0.69]
[1758742579735,1e-08,213.22,213.21,5.38021152]
[1758742579931,3.39329302,213.22,213.21,5.38021152]
[1758742580929,1e-08,213.22,213.21,5.38021152]
[1758742581125,1e-08,213.22,213.21,4.69021152]
[1758742581333,1e-08,213.22,213.21,5.41021152]
[1758742585533,1e-08,213.22,213.21,8.80350453]
[1758742589627,1e-08,213.22,213.21,22.90489351]
[1758742591821,1e-08,213.22,213.21,36.64264909]
[1758742592728,1e-08,213.22,213.21,33.24935608]
[1758742594941,1e-08,213.28,213.26,3.39329301]
[1758742595857,1e-08,213.28,213.26,4.11329301]
[1758742596649,1e-08,213.29,213.27,4.68889201]
[1758742598119,1e-08,213.29,213.28,3.39329301]
[1758742598543,1e-08,213.29,213.28,8.80196517]
[1758742599637,1e-08,213.29,213.28,22.89871587]
[1758742603846,1e-08,213.29,213.28,36.63647145]
[1758742609337,1e-08,213.29,213.28,40.02976446]
[1758742609537,1e-08,213.29,213.28,36.63647145]
[1758742609945,1e-08,213.29,213.28,40.02976446]
[1758742611044,1e-08,213.29,213.28,33.24317844]
[1758742611238,1e-08,213.29,213.28,36.63647145]
[1758742613872,1e-08,213.29,213.28,40.02976446]
[1758742615659,3.39329301,213.34,213.28,53.95046412]
[1758742615878,3.39329301,213.32,213.28,30.50710328]
[1758742616372,3.39329301,213.32,213.28,16.41035258]
[1758742616544,0.14216157,213.39,213.28,16.41035258]
[1758742616744,3.39329301,213.34,213.28,19.80364559]
[1758742616982,3.39329301,213.32,213.28,16.41035258]
[1758742617477,3.39329301,213.29,213.28,4.68867216]
[1758742617773,3.39329301,213.29,213.22,16.41497044]
[1758742617948,3.39329301,213.28,213.22,19.80826345]
[1758742618150,3.39329301,213.28,213.22,43.25822124]
[1758742618676,3.39329301,213.27,213.22,39.86492823]
[1758742619976,3.39329301,213.3,213.24,3.39329301]
[1758742620275,3.39329301,213.29,213.23,4.09329301]
[1758742620482,3.39329301,213.28,213.22,43.25822124]
[1758742620773,3.39329301,213.27,213.22,39.86492823]
[1758742621075,62.38,213.33,213.19,62.38]
[1758742621076,3.39329301,213.23,213.2,4.69023469]
[1758742621379,3.39329301,213.21,213.2,4.69023469]
[1758742621761,3.39329301,213.21,213.15,16.42036124]
[1758742621986,3.39329301,213.2,213.15,16.42036124]
[1758742622452,3.39329301,213.21,213.16,0.7]
[1758742622655,3.39329301,213.24,213.18,3.39329301]
[1758742622872,3.39329301,213.25,213.19,4.09329301]
[1758742623174,3.39329301,213.26,213.2,3.39329301]
[1758742623375,3.39329301,213.25,213.19,4.09329301]
[1758742623883,3.39329301,213.26,213.2,16.4165103]
[1758742625584,3.39329301,213.26,213.2,20.50980331]
[1758742625760,3.39329301,213.27,213.2,20.50980331]
[1758742626165,3.39329301,213.27,213.2,40.56866789]
[1758742626369,3.39329301,213.26,213.2,40.56866789]
[1758742626965,3.39329301,213.27,213.2,43.2619609]
[1758742627170,3.39329301,213.27,213.21,0.7]
[1758742627674,29.39329301,213.29,213.22,43.25822124]
[1758742627869,36.4,213.29,213.23,4.09329301]
[1758742628064,39.79329301,213.3,213.23,4.09329301]
[1758742628475,39.79329301,213.3,213.24,0.7]
[1758742628666,38.57017404,213.3,213.24,0.7]
[1758742628992,26.0,213.3,213.25,16.41266119]
[1758742629182,2.17017404,213.31,213.26,2.87017404]
[1758742629183,36.4,213.31,213.26,2.87017404]
[1758742629389,36.4,213.31,213.27,0.7]
[1758742629559,38.57017404,213.33,213.27,0.7]
[1758742629958,36.4,213.33,213.27,0.7]
[1758742630185,2.17017404,213.34,213.27,0.7]
[1758742630371,38.57017404,213.34,213.28,16.41035258]
[1758742630885,2.17017404,213.34,213.28,16.41035258]
[1758742631180,36.4,213.33,213.28,16.41035258]
[1758742631485,38.57017404,213.33,213.28,16.41035258]
[1758742632188,38.57017404,213.33,213.28,11.72168042]
[1758742632573,36.4,213.33,213.29,0.7]
[1758742633476,2.17017404,213.31,213.28,11.72168042]
[1758742633987,2.17017404,213.3,213.28,11.72168042]
[1758742634195,2.17017404,213.31,213.25,39.85932004]
[1758742634360,2.17017404,213.31,213.25,40.55932004]
[1758742634758,2.17017404,213.29,213.25,16.41266119]
[1758742634963,2.17017404,213.26,213.25,4.68933177]
[1758742635183,2.17017404,213.26,213.23,4.68957539]
[1758742635184,38.55017404,213.26,213.23,4.68957539]
[1758742635482,2.17017404,213.24,213.23,4.68957539]
[1758742635692,28.17017404,213.24,213.23,4.68957539]
[1758742636287,28.17017404,213.24,213.19,11.7262863]
[1758742636288,26.0,213.23,213.19,11.7262863]
[1758742636493,2.17017404,213.2,213.19,11.7262863]
[1758742637493,38.57017404,213.21,213.19,11.7262863]
[1758742637703,36.4,213.21,213.19,11.7262863]
[1758742637999,36.4,213.21,213.19,12.4262863]
[1758742638375,36.4,213.21,213.19,17.11693783]
[1758742639178,38.57017404,213.21,213.19,16.41693783]
[1758742639764,36.4,213.21,213.19,16.41693783]
[1758742640708,36.4,213.21,213.19,4.69065153]
[1758742640709,2.17017404,213.2,213.19,4.69065153]
[1758742640892,2.17017404,213.2,213.17,4.69092002]
[1758742641094,2.17017404,213.2,213.1,2.17017404]
[1758742641095,28.17017404,213.18,213.13,16.42146821]
[1758742641400,2.17017404,213.14,213.13,4.69197203]
[1758742642600,13.73775558,213.2,213.1,0.7]
[1758742642774,2.17017404,213.14,213.1,0.7]
[1758742643099,2.17017404,213.15,213.11,0.7]
[1758742643299,36.4,213.14,213.12,0.7]
[1758742644293,36.4,213.14,213.13,4.69197203]
[1758742645006,38.57017404,213.15,213.13,4.69197203]
[1758742645413,2.17017404,213.14,213.13,4.69197203]
[1758742645798,38.57017404,213.14,213.13,4.69197203]
[1758742646107,26.0,213.2,213.13,17.12190211]
[1758742646280,2.17017404,213.17,213.14,0.7]
[1758742646493,36.4,213.16,213.15,0.7]
[1758742646696,2.17017404,213.17,213.15,0.7]
[1758742646909,2.17017404,213.19,213.16,0.7]
[1758742647107,36.4,213.18,213.17,0.7]
[1758742647311,38.57017404,213.19,213.17,0.7]
[1758742647808,26.0,213.21,213.17,0.7]
[1758742648113,38.57017404,213.2,213.19,4.69065153]
[1758742649319,36.4,213.2,213.19,4.69065153]
[1758742649498,38.57017404,213.2,213.19,4.69065153]
[1758742650511,36.4,213.2,213.19,5.39065153]
[1758742650731,8.68069616,213.29,213.19,17.11728035]
[1758742650896,2.17017404,213.24,213.2,0.7]
[1758742651094,38.57017404,213.24,213.21,0.7]
[1758742651294,36.4,213.24,213.19,16.41728035]
[1758742651497,38.57017404,213.24,213.22,0.7]
[1758742651926,2.17017404,213.23,213.2,0.7]
[1758742652109,2.17017404,213.23,213.21,0.7]
[1758742652502,38.57017404,213.24,213.22,4.68999155]
[1758742654506,38.57017404,213.24,213.21,0.7]
[1758742655621,38.57017404,213.24,213.22,4.68999155]
[1758742656722,38.57017404,213.24,213.22,5.38999155]
[1758742657709,36.4,213.24,213.23,5.3897716]
[1758742657929,36.4,213.24,213.23,4.6897716]
[1758742658300,36.4,213.24,213.23,16.41420062]
[1758742659830,36.4,213.24,213.23,0.7]
[1758742661811,36.4,213.24,213.23,5.3897716]
[1758742667940,2.17017404,213.25,213.23,5.3897716]
[1758742668239,36.4,213.24,213.23,5.3897716]
[1758742672850,2.17017404,213.25,213.23,5.3897716]
[1758742673043,36.38,213.24,213.23,5.3897716]
[1758742676646,2.17017404,213.25,213.23,5.3897716]
[1758742676848,38.55017404,213.25,213.24,0.7]
[1758742677225,38.55017404,213.25,213.22,12.42473929]
[1758742677427,38.55017404,213.25,213.23,0.7]
[1758742679047,2.17017404,213.25,213.24,16.41343086]
[1758742679230,38.55017404,213.25,213.24,16.41343086]
[1758742679649,36.38,213.25,213.24,16.41343086]
[1758742679937,36.38,213.25,213.24,17.11343086]
[1758742680235,38.55017404,213.25,213.24,17.11343086]
[1758742681042,38.55017404,213.25,213.21,16.41574034]
[1758742681241,38.55017404,213.25,213.22,0.66]
[1758742681635,36.38,213.25,213.21,16.41574034]
[1758742682043,28.17017404,213.22,213.19,4.69043879]
[1758742682244,2.17017404,213.2,213.19,4.69043879]
[1758742682838,38.55017404,213.2,213.19,4.69043879]
[1758742683360,38.55017404,213.2,213.18,4.69087156]
[1758742683560,36.38,213.2,213.18,5.35087156]
[1758742683859,2.17017404,213.21,213.19,0.66]
[1758742684053,36.38,213.2,213.18,16.41805046]
[1758742684251,36.38,213.21,213.18,16.41805046]
[1758742684655,36.38,213.21,213.19,0.66]
[1758742685163,36.38,213.21,213.18,16.41805046]
[1758742685338,36.38,213.21,213.2,4.69043151]
[1758742685546,36.38,213.21,213.2,5.35043151]
[1758742686969,2.17017404,213.22,213.2,5.35043151]
[1758742686970,2.17017404,213.24,213.2,17.0765103]
[1758742687258,36.38,213.23,213.21,0.66]
[1758742687458,36.38,213.23,213.22,16.41497044]
[1758742687850,36.38,213.23,213.22,17.07497044]
[1758742690349,36.38,213.23,213.17,23.45440451]
[1758742690350,36.38,213.23,213.21,0.66]
[1758742690865,36.38,213.23,213.18,3.39237739]
[1758742691049,39.77237739,213.23,213.19,0.66]
[1758742691254,36.38,213.23,213.19,0.66]
[1758742691663,36.38,213.23,213.19,4.05237739]
[1758742691858,29.39237739,213.2,213.17,4.69109161]
[1758742692161,26.0,213.16,213.1,0.66]
[1758742692365,3.39237739,213.14,213.11,16.42329024]
[1758742693072,3.39237739,213.12,213.11,16.42329024]
[1758742693264,39.77237739,213.12,213.11,4.69241236]
[1758742694045,39.77237739,213.12,213.09,4.6926451]
[1758742694251,3.39237739,213.1,213.09,4.6926451]
[1758742694570,3.39237739,213.1,213.08,11.73237902]
[1758742694747,3.39237739,213.09,213.08,12.39237902]
[1758742696578,3.39237739,213.09,213.08,17.08545204]
[1758742696975,3.39237739,213.09,213.08,16.42545204]
[1758742698384,36.38,213.1,213.08,16.42545204]
[1758742698561,3.39237739,213.09,213.08,16.42545204]
[1758742698964,3.39237739,213.09,213.08,4.69307302]
[1758742699205,3.39237739,213.09,213.06,4.69329434]
[1758742699508,29.39237739,213.07,213.06,4.69329434]
[1758742699703,65.77237739,213.07,213.06,4.69329434]
[1758742699981,65.77237739,213.07,213.02,12.39570088]
[1758742699982,65.77237739,213.07,213.03,4.69417452]
[1758742700183,29.39237739,213.04,213.03,4.69417452]
[1758742700965,3.39237739,213.04,213.03,5.36417452]
[1758742701193,39.77237739,213.04,213.03,5.36417452]
[1758742701487,39.77237739,213.04,213.01,4.7944093]
[1758742701667,3.39237739,213.02,213.01,4.79459187]
[1758742701868,39.77237739,213.02,213.01,4.79459187]
[1758742702467,3.39237739,213.02,213.01,4.79459187]
[1758742702667,39.81237739,213.02,213.01,4.79459187]
[1758742703887,3.39237739,213.02,213.01,4.79459187]
[1758742704075,39.81237739,213.02,213.01,4.79459187]
[1758742704577,3.39237739,213.02,213.01,17.20113006]
[1758742704781,39.83237739,213.02,213.01,17.20113006]
[1758742705592,39.83237739,213.02,213.01,16.53113006]
[1758742706471,36.44,213.02,213.01,17.20113006]
[1758742707178,3.39237739,213.03,213.01,17.20113006]
[1758742707473,39.83237739,213.03,213.02,0.67]
[1758742707983,39.83237739,213.03,213.02,5.36439489]
[1758742708703,26.0,213.07,213.02,17.10038212]
[1758742708871,3.39237739,213.05,213.03,0.67]
[1758742709572,39.81237739,213.06,213.03,0.67]
[1758742710001,39.81237739,213.06,213.04,4.69395418]
[1758742710301,39.81237739,213.06,213.05,0.67]
[1758742710504,3.39237739,213.06,213.05,0.67]
[1758742712022,14.0343606,213.14,213.05,5.36373386]
[1758742712202,3.39237739,213.08,213.06,0.67]
[1758742712717,3.39237739,213.12,213.06,4.06237739]
[1758742712889,36.42,213.12,213.07,0.67]
[1758742713584,36.42,213.12,213.07,4.06237739]
[1758742713792,36.42,213.12,213.08,0.67]
[1758742714089,3.39237739,213.13,213.09,16.42498474]
[1758742714297,39.81237739,213.13,213.1,0.67]
[1758742714497,39.81237739,213.13,213.11,0.67]
[1758742714708,3.39237739,213.14,213.11,0.67]
[1758742714909,39.81237739,213.14,213.11,0.67]
[1758742715404,39.81237739,213.14,213.12,0.67]
[1758742715919,3.39237739,213.14,213.12,0.67]
[1758742716093,3.39237739,213.14,213.13,4.69197203]
[1758742716486,3.39237739,213.14,213.13,5.36197203]
[1758742717214,39.81237739,213.15,213.13,5.36197203]
[1758742718113,39.81237739,213.15,213.14,5.3617519]
[1758742718621,39.81237739,213.15,213.14,4.6917519]
[1758742720218,39.81237739,213.15,213.13,4.69197203]
[1758742720606,3.39237739,213.14,213.13,4.69197203]
[1758742721493,26.0,213.12,213.08,11.73225259]
[1758742721719,3.39237739,213.09,213.08,17.09532561]
[1758742722418,3.39237739,213.1,213.08,17.09532561]
[1758742722601,26.0,213.16,213.09,0.67]
[1758742722801,3.39237739,213.14,213.09,0.67]
[1758742723404,39.79237739,213.14,213.09,0.67]
[1758742723809,39.79237739,213.14,213.1,16.42421397]
[1758742724000,39.79237739,213.14,213.11,0.67]
[1758742724826,3.39237739,213.13,213.11,0.67]
[1758742725134,36.4,213.14,213.11,0.67]
[1758742725135,3.39237739,213.12,213.11,0.67]
[1758742725499,3.39237739,213.13,213.12,0.67]
[1758742726522,3.39237739,213.13,213.12,4.69219219]
[1758742727923,3.39237739,213.13,213.11,4.69241236]
[1758742728121,39.79237739,213.12,213.11,4.69241236]
[1758742730233,39.79237739,213.12,213.09,11.73201294]
[1758742730530,3.39237739,213.1,213.09,11.73201294]
[1758742730733,39.79237739,213.1,213.09,11.73201294]
[1758742731229,3.39237739,213.1,213.09,16.42486572]
[1758742731406,39.79237739,213.1,213.09,16.42486572]
[1758742734531,36.4,213.1,213.09,16.42486572]
[1758742734737,39.79237739,213.1,213.09,0.71]
[1758742735238,3.39237739,213.1,213.09,0.71]
[1758742735623,39.79237739,213.1,213.09,0.71]
[1758742735819,36.4,213.1,213.09,0.71]
[1758742736021,39.79237739,213.1,213.09,0.71]
[1758742736614,39.79237739,213.1,213.09,5.40285278]
[1758742736817,3.39237739,213.1,213.09,5.40285278]
[1758742737029,13.59559401,213.19,213.09,40.59924866]
[1758742737030,26.0,213.16,213.09,40.59924866]
[1758742737339,36.4,213.15,213.1,0.71]
[1758742737547,3.39237739,213.13,213.1,0.71]
[1758742737711,39.79237739,213.13,213.1,0.71]
[1758742738532,39.79237739,213.13,213.11,4.69241236]
[1758742738836,39.79237739,213.13,213.12,0.71]
[1758742739139,3.39237739,213.13,213.11,16.42344328]
[1758742739339,3.39237739,213.12,213.11,16.42344328]
[1758742739642,3.39237739,213.12,213.11,17.13344328]
[1758742741944,36.4,213.14,213.11,17.13344328]
[1758742742241,39.79237739,213.14,213.12,0.68]
[1758742742426,3.39237739,213.13,213.12,0.68]
[1758742742621,3.39237739,213.13,213.11,16.42344328]
[1758742743232,3.39237739,213.13,213.12,0.68]
[1758742743640,36.4,213.14,213.13,4.69197203]
[1758742743826,39.79237739,213.14,213.13,5.37197203]
[1758742745143,36.4,213.14,213.13,5.37197203]
[1758742745332,39.79237739,213.14,213.13,5.37197203]
[1758742747243,3.39237739,213.17,213.13,17.10190211]
[1758742747446,39.79237739,213.17,213.14,0.68]
[1758742748124,3.39237739,213.16,213.14,0.68]
[1758742748324,3.39237739,213.16,213.13,16.42190211]
[1758742748528,2.17287065,213.16,213.15,0.68]
[1758742749248,2.17287065,213.16,213.15,5.37153178]
[1758742753264,26.0,213.19,213.15,17.10036124]
[1758742753454,2.17287065,213.17,213.16,0.68]
[1758742753955,2.17287065,213.17,213.15,16.42036124]
[1758742754157,2.17287065,213.16,213.15,17.10036124]
[1758742754451,2.17287065,213.16,213.15,16.42036124]
[1758742754852,2.17287065,213.16,213.15,17.10036124]
[1758742755044,2.17287065,213.17,213.15,17.10036124]
[1758742755245,2.17287065,213.17,213.16,0.68]
[1758742755745,2.17287065,213.17,213.16,5.37131169]
[1758742758559,36.38,213.18,213.16,5.37131169]
[1758742758758,36.38,213.18,213.15,11.72882946]
[1758742759055,36.38,213.18,213.17,0.68]
[1758742759236,2.17287065,213.21,213.17,0.68]
[1758742759439,2.17287065,213.22,213.17,0.68]
[1758742759665,26.0,213.25,213.18,2.17287065]
[1758742759666,36.38,213.23,213.18,2.17287065]
[1758742759856,36.38,213.23,213.19,2.17287065]
[1758742760168,38.55287065,213.25,213.2,0.68]
[1758742760455,36.38,213.25,213.2,2.85287065]
[1758742760651,36.38,213.25,213.21,0.68]
[1758742760851,36.38,213.25,213.22,16.41497044]
[1758742761047,36.38,213.25,213.23,0.68]
[1758742761579,36.66,213.3,213.24,0.68]
[1758742761736,38.55287065,213.29,213.24,0.68]
[1758742761931,2.17287065,213.29,213.24,0.68]
[1758742762155,36.38,213.29,213.24,2.85287065]
[1758742762359,2.17287065,213.3,213.25,0.68]
[1758742762558,38.55287065,213.3,213.25,0.68]
[1758742762962,2.17287065,213.29,213.26,16.41189158]
[1758742763156,2.17287065,213.29,213.27,0.68]
[1758742763469,36.38,213.3,213.27,0.68]
[1758742763659,2.17287065,213.29,213.27,0.68]
[1758742764144,36.38,213.31,213.27,0.68]
[1758742764462,2.17287065,213.3,213.27,0.68]
[1758742765047,2.17287065,213.3,213.28,4.68867216]
[1758742767476,2.17287065,213.3,213.28,0.68]
[1758742768471,38.55287065,213.31,213.28,0.68]
[1758742768680,38.55287065,213.31,213.29,4.68845234]
[1758742769474,2.17287065,213.3,213.29,4.68845234]
[1758742769972,2.17287065,213.3,213.28,12.4014615]
[1758742774170,62.38,213.31,213.26,4.68911188]
[1758742774678,2.17287065,213.27,213.26,4.68911188]
[1758742774979,38.53287065,213.27,213.26,4.68911188]
[1758742775356,38.53287065,213.27,213.25,11.72289639]
[1758742775676,2.17287065,213.27,213.25,11.72289639]
[1758742775981,36.36,213.26,213.25,11.72289639]
[1758742776184,38.53287065,213.26,213.25,11.72289639]
[1758742776655,38.53287065,213.26,213.25,16.41222816]
[1758742778381,2.17287065,213.26,213.25,16.41222816]
[1758742778852,38.53287065,213.26,213.25,16.41222816]
[1758742779055,38.53287065,213.26,213.22,23.44995779]
[1758742779257,38.53287065,213.26,213.23,0.68]
[1758742779985,2.17287065,213.26,213.23,0.68]
[1758742780278,38.53287065,213.28,213.23,0.68]
[1758742780461,36.36,213.28,213.23,0.68]
[1758742780872,36.36,213.28,213.23,2.85287065]
[1758742781072,28.17287065,213.31,213.25,16.41266119]
[1758742781273,36.36,213.3,213.26,0.68]
[1758742782270,2.17287065,213.28,213.27,16.41112204]
[1758742783085,2.17287065,213.28,213.27,4.68889201]
[1758742784165,2.45447065,213.28,213.27,4.68889201]
[1758742784390,2.45447065,213.28,213.25,16.41266119]
[1758742784688,0.2816,213.28,213.26,0.68]
[1758742785084,0.2816,213.28,213.27,0.68]
[1758742786280,0.2816,213.28,213.27,5.36889201]
[1758742790991,134.6,213.37,213.27,40.53558211]
[1758742791175,2.17287065,213.32,213.28,0.7]
[1758742791691,2.17287065,213.33,213.28,0.7]
[1758742792090,2.17287065,213.33,213.29,16.40958319]
[1758742792291,2.17287065,213.33,213.3,0.7]
[1758742792593,2.17287065,213.32,213.3,0.7]
[1758742793395,2.17287065,213.34,213.31,0.7]
[1758742793596,2.17287065,213.33,213.32,0.7]
[1758742793789,2.17287065,213.34,213.32,0.7]
[1758742794169,2.17287065,213.33,213.32,0.7]
[1758742794591,2.17287065,213.33,213.3,0.7]
[1758742794795,2.17287065,213.32,213.3,0.7]
[1758742794998,2.17287065,213.31,213.29,11.72113085]
[1758742795195,2.17287065,213.31,213.29,0.7]
[1758742795490,2.17287065,213.32,213.3,0.7]
[1758742796271,26.0,213.36,213.31,0.7]
[1758742796502,28.17287065,213.36,213.31,0.7]
[1758742796871,2.17287065,213.35,213.31,0.7]
[1758742797301,2.17287065,213.33,213.32,16.40727544]
[1758742798585,2.17287065,213.33,213.32,11.71948246]
[1758742798784,38.51287065,213.33,213.32,11.71948246]
[1758742801717,38.51287065,213.33,213.32,12.37948246]
[1758742801921,38.51287065,213.33,213.32,11.71948246]
[1758742802485,26.0,213.36,213.32,12.37948246]
[1758742802786,2.17287065,213.33,213.32,12.37948246]
[1758742803292,36.34,213.34,213.32,12.37948246]
[1758742803485,2.17287065,213.35,213.32,11.71948246]
[1758742803710,38.51287065,213.34,213.33,0.66]
[1758742804511,38.51287065,213.34,213.33,4.68757324]
[1758742804986,38.49287065,213.34,213.33,4.68757324]
[1758742805815,38.49287065,213.34,213.33,5.34757324]
[1758742806114,2.17287065,213.34,213.33,5.34757324]
[1758742806613,36.32,213.35,213.33,5.34757324]
[1758742806906,2.17287065,213.34,213.33,4.68757324]
[1758742808403,26.0,213.32,213.29,11.72069669]
[1758742808607,39.71034233,213.31,213.3,0.66]
[1758742809190,26.0,213.38,213.3,0.66]
[1758742809387,3.39034233,213.33,213.3,0.66]
[1758742809586,39.71034233,213.33,213.3,0.66]
[1758742809811,36.32,213.33,213.3,0.66]
[1758742810106,36.32,213.36,213.3,4.05034233]
[1758742810307,39.71034233,213.36,213.31,0.66]
[1758742810512,39.71034233,213.36,213.32,16.40727544]
[1758742810814,39.71034233,213.36,213.33,0.66]
[1758742810815,3.39034233,213.35,213.33,0.66]
[1758742811307,3.39034233,213.35,213.34,0.66]
[1758742811710,3.39034233,213.37,213.34,0.66]
[1758742812388,3.39034233,213.35,213.32,16.40727544]
[1758742812589,3.39034233,213.36,213.34,4.68735352]
[1758742812792,3.39034233,213.36,213.35,0.66]